fUSD/lending_fUSD_20250312
["ID","MTS","AMOUNT","RATE_DAILY","PERIOD"]
[355975148,1741751443345,-500.0,9.998e-05,2]
[355975149,1741751443355,-500.0,9.998e-05,2]
[355975150,1741751443364,-500.0,9.998e-05,2]
[355975151,1741751443374,-840.57,9.998e-05,2]
[355975152,1741751443384,-500.0,9.998e-05,2]
[355975153,1741751443393,-548.39,9.998e-05,2]
[355975154,1741751443403,-500.0,9.998e-05,2]
[355975155,1741751443412,-419.15296285,9.998e-05,2]
[355975156,1741751443422,-500.0,9.998e-05,2]
[355975157,1741751443432,-2048.93,9.998e-05,2]
[355975158,1741751443441,-500.0,9.998e-05,2]
[355975159,1741751443451,-500.0,9.998e-05,2]
[355975160,1741751443460,-500.0,9.998e-05,2]
[355975161,1741751443470,-790.38,9.998e-05,2]
[355975162,1741751443479,-500.0,9.998e-05,2]
[355975163,1741751443492,-4869.91,9.998e-05,2]
[355975164,1741751443501,-500.0,9.998e-05,2]
[355975165,1741751443511,-959.0,9.998e-05,2]
[355975166,1741751443521,-500.0,9.998e-05,2]
[355975167,1741751443530,-500.0,9.998e-05,2]
[355975168,1741751443540,-500.0,9.998e-05,2]
[355975169,1741751443549,-500.0,9.998e-05,2]
[355975170,1741751443559,-500.0,9.998e-05,2]
[355975171,1741751443568,-500.0,9.998e-05,2]
[355975172,1741751443578,-1689.76,9.998e-05,2]
[355975173,1741751443588,-500.0,9.998e-05,2]
[355975174,1741751443597,-500.0,9.998e-05,2]
[355975175,1741751443606,-550.99,9.998e-05,2]
[355975176,1741751443615,-661.25,9.998e-05,2]
[355975177,1741751443625,-500.0,9.998e-05,2]
[355975178,1741751443634,-702.72,9.998e-05,2]
[355975179,1741751443644,-598.7,9.998e-05,2]
[355975180,1741751443653,-530.81,9.998e-05,2]
[355975181,1741751443662,-711.24,9.998e-05,2]
[355975182,1741751443672,-904.31,9.998e-05,2]
[355975183,1741751443681,-500.0,9.998e-05,2]
[355975184,1741751443690,-1519.12,9.998e-05,2]
[355975185,1741751443700,-500.0,9.998e-05,2]
[355975186,1741751443709,-1713.85,9.998e-05,2]
[355975187,1741751443719,-500.0,9.998e-05,2]
[355975188,1741751443728,-7173.13,9.998e-05,2]
[355975189,1741751443739,-549.7,9.998e-05,2]
[355975190,1741751443750,-500.0,9.998e-05,2]
[355975191,1741751443759,-500.0,9.998e-05,2]
[355975192,1741751443769,-181.55685217,9.999e-05,3]
[355975193,1741751443779,-500.0,9.999e-05,2]
[355975194,1741751443789,-2073.86252792,9.999e-05,2]
[355975195,1741751443799,-500.0,9.999e-05,2]
[355975196,1741751443809,-500.0,9.999e-05,2]
[355975197,1741751443819,-693.21,9.999e-05,2]
[355975198,1741751443828,-500.0,9.999e-05,2]
[355975199,1741751443838,-500.0,9.999e-05,2]
[355975200,1741751443848,-1384.67,9.999e-05,2]
[355975201,1741751443857,-243.72682941,9.999e-05,2]
[355975202,1741751443866,-1472.28,9.999e-05,2]
[355975203,1741751443876,-520.2,9.999e-05,2]
[355975204,1741751443885,-980.23,9.999e-05,2]
[355975205,1741751443895,-5171.9,9.999e-05,2]
[355975206,1741751443905,-744.24,9.999e-05,2]
[355975207,1741751443915,-519.3,9.999e-05,2]
[355975208,1741751443925,-635.48,9.999e-05,2]
[355975209,1741751443934,-512.44,9.999e-05,2]
[355975210,1741751443944,-1197.83,9.999e-05,2]
[355975211,1741751443953,-970.19798833,9.999e-05,2]
[355975212,1741751443962,-1332.01,9.999e-05,2]
[355975213,1741751443972,-1086.86,9.999e-05,2]
[355975214,1741751443981,-1104.3,9.999e-05,2]
[355975215,1741751443993,-534.33049243,9.999e-05,2]
[355975216,1741751444002,-500.0,9.999e-05,2]
[355975217,1741751444011,-1170.7,9.999e-05,2]
[355975218,1741751444021,-5800.0,9.999e-05,2]
[355975219,1741751444031,-500.0,9.999e-05,2]
[355975220,1741751444041,-500.0,9.999e-05,2]
[355975221,1741751444055,-500.0,9.999e-05,2]
[355975222,1741751444065,-175.04530427,9.999e-05,2]
[355975223,1741751444088,-324.95469573,9.999e-05,2]
[355975224,1741751444098,-528.83076844,9.999e-05,2]
[355975225,1741751444108,-274.05584486,0.0001,2]
[355975226,1741751444120,-1040.94415514,0.0001,2]
[355975227,1741751444131,-489.05584486,0.0001,2]
[355975228,1741751444155,-2738.06124525,0.0001,2]
[355975229,1741751444170,-14893.00510089,0.0001,2]
[355975230,1741751444180,-1074501.51837109,0.0001,2]
[355975231,1741751444189,-53332.37874983,0.0001,2]
[355975232,1741751444199,-76020.55557522,0.0001,2]
[355975233,1741751444211,-1856.01690387,0.0001,2]
[355975234,1741751444220,-2628.06352944,0.0001,2]
[355975235,1741751444230,-154166.68338189,0.0001,2]
[355975236,1741751444248,-3284.44,0.0001,2]
[355975237,1741751444268,-257298.93378399,0.0001,2]
[355975238,1741751444277,-294673.85707866,0.0001,2]
[355975247,1741751445725,-0.00340505,0.0001,2]
[355975248,1741751445838,-8836.57157535,0.0001,2]
[355975251,1741751446699,-500.0,9.997e-05,2]
[355975252,1741751446708,-50310.29928759,0.0001,2]
[355975253,1741751446722,-401.0,0.0001,2]
[355975254,1741751446792,-7216.64268312,0.0001,2]
[355975255,1741751446811,-2359.79192815,0.0001,2]
[355975256,1741751447072,-274.01272699,9.997e-05,2]
[355975257,1741751447085,-225.98727301,9.997e-05,2]
[355975258,1741751447096,-587.7688175,9.997e-05,2]
[355975259,1741751468343,215.80264863,8.491e-05,2]
[355975269,1741752538317,-460.84,9.147e-05,2]
[355975270,1741752538343,-250.0,9.177e-05,2]
[355975271,1741752538369,-1000.0,9.205e-05,2]
[355975272,1741752538395,-4.52798832,9.562e-05,7]
[355975274,1741752619840,1063.22,8.219e-05,2]
[355975282,1741752631722,-145.47201168,9.562e-05,7]
[355975283,1741752631732,-1000.0,9.898e-05,2]
[355975284,1741752631742,-1297.6554,9.899e-05,2]
[355975285,1741752631751,-150.0,9.899e-05,2]
[355975286,1741752631760,-300.0,9.899e-05,2]
[355975287,1741752631770,-31608.41405033,9.9e-05,3]
[355975288,1741752631780,-6324.84000001,9.9e-05,3]
[355975289,1741752631789,-5000.0,9.9e-05,2]
[355975290,1741752631799,-150.0,9.9e-05,2]
[355975291,1741752631808,-150.0,9.9e-05,2]
[355975292,1741752631818,-1012.0,9.9e-05,2]
[355975293,1741752631828,-202.0,9.99e-05,2]
[355975294,1741752631837,-201.94,9.99e-05,2]
[355975295,1741752631847,-150.0,9.99e-05,2]
[355975296,1741752631856,-150.0,9.99e-05,2]
[355975297,1741752631866,-1101.117,9.996e-05,2]
[355975298,1741752631875,-500.0,9.997e-05,2]
[355975299,1741752631886,-500.0,9.997e-05,2]
[355975300,1741752631896,-500.0,9.997e-05,2]
[355975301,1741752631906,-500.0,9.997e-05,2]
[355975302,1741752631915,-500.0,9.997e-05,2]
[355975303,1741752631925,-500.0,9.997e-05,2]
[355975304,1741752631934,-500.0,9.997e-05,2]
[355975305,1741752631944,-500.0,9.997e-05,2]
[355975306,1741752631954,-500.0,9.997e-05,2]
[355975307,1741752631963,-500.0,9.997e-05,2]
[355975308,1741752631973,-500.0,9.997e-05,2]
[355975309,1741752631982,-505.04,9.997e-05,2]
[355975310,1741752631991,-500.0,9.997e-05,2]
[355975311,1741752632001,-593.94,9.997e-05,2]
[355975312,1741752632010,-507.09,9.997e-05,2]
[355975313,1741752632019,-500.0,9.997e-05,7]
[355975314,1741752632028,-500.0,9.997e-05,2]
[355975315,1741752632037,-500.0,9.997e-05,2]
[355975316,1741752632046,-580.37,9.997e-05,2]
[355975317,1741752632055,-509.10684442,9.997e-05,2]
[355975318,1741752632064,-500.0,9.997e-05,2]
[355975319,1741752632074,-500.0,9.997e-05,2]
[355975320,1741752632082,-500.0,9.997e-05,2]
[355975321,1741752632091,-500.0,9.997e-05,2]
[355975322,1741752632100,-306.37442061,9.997e-05,2]
[355975323,1741752632112,-193.62557939,9.997e-05,2]
[355975324,1741752632122,-526.51,9.997e-05,2]
[355975325,1741752632131,-500.0,9.997e-05,2]
[355975326,1741752632140,-500.0,9.997e-05,2]
[355975327,1741752632149,-500.0,9.997e-05,2]
[355975328,1741752632158,-500.0,9.997e-05,2]
[355975329,1741752632168,-500.0,9.997e-05,2]
[355975330,1741752632177,-500.0,9.997e-05,2]
[355975331,1741752632186,-526.8,9.997e-05,2]
[355975332,1741752632195,-500.0,9.997e-05,2]
[355975333,1741752632204,-500.0,9.997e-05,2]
[355975334,1741752632213,-500.0,9.997e-05,2]
[355975335,1741752632223,-500.0,9.997e-05,2]
[355975336,1741752632232,-500.0,9.997e-05,2]
[355975337,1741752632241,-500.0,9.997e-05,2]
[355975338,1741752632250,-500.0,9.997e-05,2]
[355975339,1741752632259,-500.0,9.997e-05,2]
[355975340,1741752632268,-500.0,9.997e-05,2]
[355975341,1741752632277,-500.0,9.997e-05,2]
[355975342,1741752632286,-500.0,9.997e-05,2]
[355975343,1741752632296,-500.0,9.997e-05,2]
[355975345,1741752632305,-500.0,9.997e-05,2]
[355975347,1741752632313,-558.00573478,9.997e-05,2]
[355975349,1741752632322,-500.0,9.997e-05,2]
[355975351,1741752632331,-500.0,9.997e-05,2]
[355975353,1741752632340,-345.00026674,9.997e-05,2]
[355975356,1741752632362,-181.42973326,9.997e-05,2]
[355975358,1741752632371,-438.83755457,9.997e-05,2]
[355975360,1741752632380,-500.0,9.997e-05,2]
[355975362,1741752632389,-509.3,9.997e-05,2]
[355975364,1741752632398,-500.0,9.997e-05,2]
[355975365,1741752632407,-500.0,9.997e-05,2]
[355975366,1741752632416,-500.0,9.997e-05,2]
[355975367,1741752632425,-500.0,9.997e-05,2]
[355975368,1741752632434,-96.43271217,9.997e-05,2]
[355975369,1741752632469,-403.56728783,9.997e-05,2]
[355975370,1741752632478,-241.96603479,9.997e-05,2]
[355975371,1741752632487,-500.0,9.997e-05,2]
[355975372,1741752632496,-500.0,9.997e-05,2]
[355975373,1741752632508,-500.0,9.997e-05,2]
[355975374,1741752632519,-500.0,9.997e-05,2]
[355975375,1741752632528,-555.28,9.997e-05,2]
[355975376,1741752632538,-500.0,9.997e-05,2]
[355975377,1741752632547,-500.0,9.997e-05,2]
[355975378,1741752632558,-505.64204375,9.997e-05,2]
[355975379,1741752632567,-500.0,9.997e-05,2]
[355975380,1741752632576,-104.36643574,9.997e-05,2]
[355975381,1741752632600,-395.63356426,9.997e-05,2]
[355975382,1741752632609,-500.0,9.997e-05,2]
[355975383,1741752632618,-594.83,9.997e-05,2]
[355975384,1741752632627,-500.0,9.997e-05,2]
[355975385,1741752632636,-500.0,9.997e-05,2]
[355975386,1741752632645,-500.0,9.997e-05,2]
[355975387,1741752632654,-500.0,9.997e-05,2]
[355975388,1741752632663,-500.0,9.997e-05,2]
[355975389,1741752632672,-500.0,9.997e-05,2]
[355975390,1741752632682,-500.0,9.997e-05,2]
[355975391,1741752632691,-500.0,9.997e-05,2]
[355975392,1741752632700,-500.0,9.997e-05,2]
[355975393,1741752632709,-500.0,9.997e-05,2]
[355975394,1741752632718,-506.43513787,9.997e-05,2]
[355975395,1741752632727,-500.0,9.997e-05,2]
[355975396,1741752632736,-500.0,9.997e-05,2]
[355975397,1741752632745,-500.0,9.997e-05,2]
[355975398,1741752632755,-460.30129787,9.997e-05,2]
[355975399,1741752632766,-158.03870213,9.997e-05,2]
[355975400,1741752632775,-227.96129788,9.997e-05,2]
[355975403,1741752637583,-272.03870212,9.997e-05,2]
[355975404,1741752637594,-317.78096299,9.997e-05,2]
[355975405,1741752637638,-182.21903701,9.997e-05,2]
[355975406,1741752637647,-500.0,9.997e-05,2]
[355975407,1741752637656,-186.69373382,9.997e-05,2]
[355975408,1741752637665,-500.0,9.997e-05,2]
[355975409,1741752637675,-686.58722917,9.997e-05,2]
[355975410,1741752637690,-5.96277083,9.997e-05,2]
[355975411,1741752637698,-500.0,9.997e-05,2]
[355975412,1741752637708,-548.30948054,9.997e-05,2]
[355975413,1741752637797,-379.49051946,9.997e-05,2]
[355975414,1741752637806,-195.14993513,9.997e-05,2]
[355975415,1741752637818,-304.85006487,9.997e-05,2]
[355975416,1741752637830,-446.01293513,9.997e-05,2]
[355975417,1741752637850,-153.76706487,9.997e-05,2]
[355975418,1741752637860,-558.35,9.997e-05,2]
[355975419,1741752637869,-262.04500956,9.997e-05,2]
[355975420,1741752637880,-237.95499044,9.997e-05,2]
[355975421,1741752637890,-62.36500956,9.997e-05,2]
[355975422,1741752637901,-653.96499044,9.997e-05,2]
[355975423,1741752637911,-148.19029601,9.997e-05,2]
[355975438,1741752639685,-351.80970399,9.997e-05,2]
[355975439,1741752639695,-508.86303817,9.997e-05,2]
[355975440,1741752639704,-500.0,9.997e-05,2]
[355975441,1741752639714,-500.0,9.997e-05,2]
[355975442,1741752639723,-511.7,9.997e-05,2]
[355975443,1741752639733,-520.78233243,9.997e-05,2]
[355975444,1741752639742,-98.02522031,9.997e-05,2]
[355975445,1741752639789,-401.97477969,9.997e-05,2]
[355975446,1741752639799,-701.21,9.997e-05,2]
[355975447,1741752639808,-693.16,9.997e-05,2]
[355975448,1741752639817,-500.0,9.997e-05,2]
[355975449,1741752639827,-500.0,9.997e-05,2]
[355975450,1741752639836,-500.0,9.997e-05,2]
[355975451,1741752639845,-500.0,9.997e-05,2]
[355975452,1741752639855,-500.0,9.997e-05,2]
[355975453,1741752639864,-500.0,9.997e-05,2]
[355975454,1741752639874,-500.0,9.997e-05,2]
[355975455,1741752639883,-586.61,9.997e-05,2]
[355975456,1741752639892,-504.87,9.997e-05,2]
[355975457,1741752639902,-811.31,9.997e-05,2]
[355975458,1741752639911,-500.0,9.997e-05,2]
[355975459,1741752639921,-500.0,9.997e-05,2]
[355975460,1741752639930,-531.0,9.997e-05,2]
[355975461,1741752639939,-500.0,9.997e-05,2]
[355975462,1741752639948,-533.58674688,9.997e-05,2]
[355975463,1741752639958,-852.26,9.997e-05,2]
[355975464,1741752639968,-500.0,9.998e-05,2]
[355975465,1741752639977,-500.0,9.998e-05,2]
[355975466,1741752639987,-1007.728081,9.998e-05,2]
[355975467,1741752639996,-1176.72,9.998e-05,2]
[355975468,1741752640005,-1454.94,9.998e-05,2]
[355975469,1741752640015,-1567.73,9.998e-05,2]
[355975470,1741752640024,-638.49,9.998e-05,2]
[355975471,1741752640034,-150.942088,9.998e-05,2]
[355975472,1741752640043,-154.034078,9.998e-05,2]
[355975473,1741752640053,-153.003788,9.998e-05,2]
[355975474,1741752640063,-732.72,9.998e-05,2]
[355975475,1741752640072,-1315.54,9.998e-05,2]
[355975476,1741752640082,-2248.25,9.998e-05,2]
[355975477,1741752640091,-731.46,9.998e-05,2]
[355975478,1741752640100,-500.0,9.998e-05,2]
[355975479,1741752640110,-500.0,9.998e-05,2]
[355975480,1741752640119,-1298.71,9.998e-05,2]
[355975481,1741752640130,-500.0,9.998e-05,2]
[355975482,1741752640139,-634.22,9.998e-05,2]
[355975483,1741752640149,-1148.32,9.998e-05,2]
[355975484,1741752640158,-1517.04,9.998e-05,2]
[355975485,1741752640168,-559.07,9.998e-05,2]
[355975486,1741752640178,-2005.66,9.998e-05,2]
[355975487,1741752640187,-583.76,9.998e-05,2]
[355975488,1741752640196,-915.08,9.998e-05,2]
[355975489,1741752640205,-1865.93,9.998e-05,2]
[355975490,1741752640215,-2560.51,9.998e-05,2]
[355975491,1741752640225,-2178.76,9.998e-05,2]
[355975492,1741752640234,-556.53,9.998e-05,2]
[355975493,1741752640243,-610.13,9.998e-05,2]
[355975494,1741752640253,-500.0,9.998e-05,2]
[355975495,1741752640263,-733.27,9.998e-05,2]
[355975496,1741752640273,-1034.42,9.998e-05,2]
[355975497,1741752640282,-4234.98,9.998e-05,2]
[355975498,1741752640292,-519.08,9.998e-05,2]
[355975499,1741752640302,-1871.46,9.998e-05,2]
[355975500,1741752640311,-500.0,9.998e-05,2]
[355975501,1741752640322,-500.0,9.998e-05,2]
[355975502,1741752640331,-581.08,9.998e-05,2]
[355975503,1741752640341,-1278.52,9.998e-05,2]
[355975504,1741752640350,-500.0,9.998e-05,2]
[355975505,1741752640360,-500.0,9.998e-05,2]
[355975506,1741752640369,-861.53,9.998e-05,2]
[355975507,1741752640378,-500.0,9.998e-05,2]
[355975508,1741752640387,-1256.88,9.998e-05,2]
[355975509,1741752640397,-500.0,9.998e-05,2]
[355975510,1741752640406,-2644.21,9.998e-05,2]
[355975511,1741752640415,-740.65,9.998e-05,2]
[355975512,1741752640424,-729.19,9.998e-05,2]
[355975513,1741752640433,-736.2,9.998e-05,2]
[355975514,1741752640442,-1370.09,9.998e-05,2]
[355975515,1741752640451,-1092.95,9.998e-05,2]
[355975516,1741752640460,-1171.84,9.998e-05,2]
[355975517,1741752640469,-795.9,9.998e-05,2]
[355975518,1741752640478,-500.0,9.998e-05,2]
[355975519,1741752640488,-500.0,9.998e-05,2]
[355975520,1741752640497,-500.0,9.998e-05,2]
[355975521,1741752640507,-500.0,9.998e-05,2]
[355975522,1741752640522,-500.0,9.998e-05,2]
[355975523,1741752640531,-650.07,9.998e-05,2]
[355975524,1741752640540,-362.04000336,9.998e-05,2]
[355975525,1741752640548,-500.0,9.998e-05,2]
[355975526,1741752640558,-956.07,9.998e-05,2]
[355975527,1741752640567,-3859.55,9.998e-05,2]
[355975528,1741752640577,-500.0,9.998e-05,2]
[355975529,1741752640586,-2162.94,9.998e-05,2]
[355975530,1741752640596,-820.67,9.998e-05,2]
[355975531,1741752640605,-500.0,9.998e-05,2]
[355975532,1741752640614,-500.0,9.998e-05,2]
[355975533,1741752640623,-609.76,9.998e-05,2]
[355975534,1741752640633,-1169.99,9.998e-05,2]
[355975535,1741752640642,-500.0,9.999e-05,2]
[355975536,1741752640651,-500.0,9.999e-05,2]
[355975537,1741752640660,-500.0,9.999e-05,2]
[355975538,1741752640669,-500.0,9.999e-05,2]
[355975539,1741752640679,-559.14,9.999e-05,2]
[355975540,1741752640688,-500.0,9.999e-05,2]
[355975541,1741752640697,-500.0,9.999e-05,2]
[355975542,1741752640706,-500.0,9.999e-05,2]
[355975543,1741752640715,-500.0,9.999e-05,2]
[355975544,1741752640724,-586.2,9.999e-05,2]
[355975545,1741752640733,-500.0,9.999e-05,2]
[355975546,1741752640742,-500.0,9.999e-05,2]
[355975547,1741752640751,-651.02,9.999e-05,2]
[355975548,1741752640761,-500.0,9.999e-05,2]
[355975549,1741752640770,-500.0,9.999e-05,2]
[355975550,1741752640779,-500.0,9.999e-05,2]
[355975551,1741752640788,-500.0,9.999e-05,2]
[355975552,1741752640797,-500.0,9.999e-05,2]
[355975553,1741752640807,-500.0,9.999e-05,2]
[355975554,1741752640816,-549.09104782,9.999e-05,2]
[355975555,1741752640825,-500.0,9.999e-05,2]
[355975556,1741752640835,-500.0,9.999e-05,2]
[355975557,1741752640845,-500.0,9.999e-05,2]
[355975558,1741752640854,-584.04,9.999e-05,2]
[355975559,1741752640863,-500.0,9.999e-05,2]
[355975560,1741752640873,-500.0,9.999e-05,2]
[355975561,1741752640883,-622.81,9.999e-05,2]
[355975562,1741752640893,-686.87,9.999e-05,2]
[355975563,1741752640903,-500.0,9.999e-05,2]
[355975564,1741752640913,-562.35,9.999e-05,2]
[355975565,1741752640923,-500.0,9.999e-05,2]
[355975566,1741752640933,-500.0,9.999e-05,2]
[355975567,1741752640942,-564.11,9.999e-05,2]
[355975568,1741752640951,-525.71,9.999e-05,2]
[355975569,1741752640960,-500.0,9.999e-05,2]
[355975570,1741752640970,-589.13,9.999e-05,2]
[355975571,1741752640979,-601.83844427,9.999e-05,2]
[355975572,1741752640988,-471.80564276,9.999e-05,2]
[355975573,1741752640998,-594.77,9.999e-05,2]
[355975574,1741752641007,-546.18,9.999e-05,2]
[355975575,1741752641018,-500.0,9.999e-05,2]
[355975576,1741752641027,-500.0,9.999e-05,2]
[355975577,1741752641037,-500.0,9.999e-05,2]
[355975578,1741752641046,-500.0,9.999e-05,2]
[355975579,1741752641055,-500.0,9.999e-05,2]
[355975580,1741752641065,-500.0,9.999e-05,2]
[355975581,1741752641075,-500.0,9.999e-05,2]
[355975582,1741752641084,-500.0,9.999e-05,2]
[355975583,1741752641094,-500.0,9.999e-05,2]
[355975584,1741752641103,-500.0,9.999e-05,2]
[355975585,1741752641113,-762.2,9.999e-05,2]
[355975586,1741752641122,-500.0,9.999e-05,2]
[355975587,1741752641133,-500.0,9.999e-05,2]
[355975588,1741752641143,-500.0,9.999e-05,2]
[355975589,1741752641152,-695.39,9.999e-05,2]
[355975590,1741752641163,-500.0,9.999e-05,2]
[355975591,1741752641172,-702.12,9.999e-05,2]
[355975592,1741752641182,-500.0,9.999e-05,2]
[355975593,1741752641191,-1384.4,9.999e-05,2]
[355975594,1741752641201,-611.74,9.999e-05,2]
[355975595,1741752641210,-500.0,9.999e-05,2]
[355975596,1741752641220,-500.0,9.999e-05,2]
[355975597,1741752641230,-502.87589129,9.999e-05,2]
[355975598,1741752641239,-500.0,9.999e-05,2]
[355975599,1741752641249,-542.37,9.999e-05,2]
[355975600,1741752641259,-500.0,9.999e-05,2]
[355975601,1741752641269,-500.0,9.999e-05,2]
[355975602,1741752641279,-598.18,9.999e-05,2]
[355975603,1741752641288,-500.0,9.999e-05,2]
[355975604,1741752641298,-500.0,9.999e-05,2]
[355975605,1741752641308,-500.0,9.999e-05,2]
[355975606,1741752641317,-500.0,9.999e-05,2]
[355975607,1741752641327,-500.0,9.999e-05,2]
[355975608,1741752641337,-663.94,9.999e-05,2]
[355975609,1741752641346,-671.32,9.999e-05,2]
[355975610,1741752641356,-500.0,9.999e-05,2]
[355975611,1741752641365,-500.0,9.999e-05,2]
[355975612,1741752641374,-500.0,9.999e-05,2]
[355975613,1741752641383,-500.0,9.999e-05,2]
[355975614,1741752641392,-500.0,9.999e-05,2]
[355975615,1741752641402,-598.04,9.999e-05,2]
[355975616,1741752641411,-500.0,9.999e-05,2]
[355975617,1741752641421,-500.0,9.999e-05,2]
[355975618,1741752641430,-530.74348226,9.999e-05,2]
[355975619,1741752641439,-500.0,9.999e-05,2]
[355975620,1741752641448,-500.0,9.999e-05,2]
[355975621,1741752641457,-500.0,9.999e-05,2]
[355975622,1741752641467,-500.0,9.999e-05,2]
[355975623,1741752641475,-550.27,9.999e-05,2]
[355975624,1741752641485,-579.58,9.999e-05,2]
[355975625,1741752641494,-704.76,9.999e-05,2]
[355975626,1741752641503,-254.89137976,9.999e-05,2]
[355975627,1741752641517,-500.0,9.999e-05,2]
[355975628,1741752641526,-500.0,9.999e-05,2]
[355975629,1741752641535,-500.0,9.999e-05,2]
[355975630,1741752641545,-500.0,9.999e-05,2]
[355975631,1741752641555,-712.1,9.999e-05,2]
[355975632,1741752641564,-500.0,9.999e-05,2]
[355975633,1741752641574,-588.53781403,9.999e-05,2]
[355975634,1741752641583,-500.0,9.999e-05,2]
[355975635,1741752641593,-500.0,9.999e-05,2]
[355975636,1741752641603,-500.0,9.999e-05,2]
[355975637,1741752641612,-500.0,9.999e-05,2]
[355975638,1741752641621,-500.0,9.999e-05,2]
[355975639,1741752641630,-500.0,9.999e-05,2]
[355975640,1741752641639,-506.67,9.999e-05,2]
[355975641,1741752641648,-500.0,9.999e-05,2]
[355975642,1741752641658,-500.0,9.999e-05,2]
[355975643,1741752641667,-500.0,9.999e-05,2]
[355975644,1741752641676,-500.0,9.999e-05,2]
[355975645,1741752641685,-500.0,9.999e-05,2]
[355975646,1741752641694,-500.0,9.999e-05,2]
[355975647,1741752641703,-500.0,9.999e-05,2]
[355975648,1741752641712,-560.83,9.999e-05,2]
[355975649,1741752641720,-621.97,9.999e-05,2]
[355975650,1741752641729,-500.0,9.999e-05,2]
[355975651,1741752641738,-686.34,9.999e-05,2]
[355975652,1741752641747,-500.0,9.999e-05,2]
[355975653,1741752641756,-657.51,9.999e-05,2]
[355975654,1741752641766,-500.0,9.999e-05,2]
[355975655,1741752641775,-500.0,9.999e-05,2]
[355975656,1741752641784,-586.73,9.999e-05,2]
[355975657,1741752641793,-510.05,9.999e-05,2]
[355975658,1741752641802,-500.0,9.999e-05,2]
[355975659,1741752641811,-742.02,9.999e-05,2]
[355975660,1741752641820,-561.69,9.999e-05,2]
[355975661,1741752641829,-500.0,9.999e-05,2]
[355975662,1741752641838,-500.0,9.999e-05,2]
[355975663,1741752641847,-505.43,9.999e-05,2]
[355975664,1741752641856,-1370.31,9.999e-05,2]
[355975665,1741752641864,-864.75,9.999e-05,2]
[355975666,1741752641873,-549.2,9.999e-05,2]
[355975667,1741752641882,-500.0,9.999e-05,2]
[355975668,1741752641891,-500.0,9.999e-05,2]
[355975669,1741752641900,-1214.55,9.999e-05,2]
[355975670,1741752641909,-1021.08,9.999e-05,2]
[355975671,1741752641918,-500.0,9.999e-05,2]
[355975672,1741752641927,-500.0,9.999e-05,2]
[355975673,1741752641936,-500.0,9.999e-05,2]
[355975674,1741752641945,-500.0,9.999e-05,2]
[355975675,1741752641954,-500.0,9.999e-05,2]
[355975676,1741752641964,-500.0,9.999e-05,2]
[355975677,1741752641973,-500.0,9.999e-05,2]
[355975678,1741752641982,-500.0,9.999e-05,2]
[355975679,1741752641991,-500.0,9.999e-05,2]
[355975680,1741752642000,-1945.81,9.999e-05,2]
[355975681,1741752642009,-624.71,9.999e-05,2]
[355975682,1741752642019,-500.0,9.999e-05,2]
[355975683,1741752642028,-500.0,9.999e-05,2]
[355975684,1741752642037,-931.11,9.999e-05,2]
[355975685,1741752642047,-507.127431,9.999e-05,2]
[355975686,1741752642056,-939.38,9.999e-05,2]
[355975687,1741752642066,-1143.28,9.999e-05,2]
[355975688,1741752642075,-500.0,9.999e-05,2]
[355975689,1741752642084,-4956.41,9.999e-05,2]
[355975690,1741752642093,-500.0,9.999e-05,2]
[355975691,1741752642103,-500.0,9.999e-05,2]
[355975692,1741752642112,-1068.51,9.999e-05,2]
[355975693,1741752642121,-500.0,9.999e-05,2]
[355975694,1741752642135,-713.23,9.999e-05,2]
[355975695,1741752642145,-500.0,9.999e-05,2]
[355975696,1741752642154,-500.0,9.999e-05,2]
[355975697,1741752642164,-500.0,9.999e-05,2]
[355975698,1741752642173,-500.0,9.999e-05,2]
[355975699,1741752642183,-614.02,9.999e-05,2]
[355975700,1741752642192,-288.40931397,9.999e-05,2]
[355975701,1741752642201,-500.0,9.999e-05,2]